fUST/lending_fUST_20240902
["ID","MTS","AMOUNT","RATE_DAILY","PERIOD"]
[336885656,1725232246522,-500.0,0.00024657,2]
[336885657,1725232246532,-500.0,0.00024657,2]
[336885658,1725232246542,-625.55,0.00024657,2]
[336885659,1725232246551,-500.93254474,0.00024657,2]
[336885660,1725232246561,-500.0,0.00024657,2]
[336885661,1725232246571,-500.0,0.00024657,2]
[336885662,1725232246580,-698.33,0.00024657,2]
[336885663,1725232246589,-500.0,0.00024657,2]
[336885664,1725232246599,-1287.09,0.00024657,2]
[336885665,1725232246608,-1349.33,0.00024657,2]
[336885666,1725232246617,-1721.95,0.00024657,2]
[336885667,1725232246627,-310.73867141,0.00024657,2]
[336885669,1725232246638,-698.28,0.00024657,2]
[336885671,1725232246650,-1193.98,0.00024657,2]
[336885672,1725232246660,-500.0,0.00024657,2]
[336885673,1725232246670,-756.85,0.00024657,2]
[336885674,1725232246679,-500.0,0.00024657,2]
[336885675,1725232246688,-500.0,0.00024657,2]
[336885676,1725232246697,-500.0,0.00024657,2]
[336885677,1725232246706,-500.0,0.00024657,2]
[336885678,1725232246715,-468.42360655,0.00024657,2]
[336885679,1725232246724,-500.0,0.00024657,2]
[336885680,1725232246733,-500.0,0.00024657,2]
[336885681,1725232246743,-1560.61,0.00024657,2]
[336885682,1725232246752,-2764.87,0.00024657,2]
[336885683,1725232246762,-1196.39,0.00024657,2]
[336885684,1725232246771,-1291.81,0.00024657,2]
[336885685,1725232246780,-500.63026469,0.00024657,2]
[336885686,1725232246789,-500.0,0.00024657,2]
[336885687,1725232246799,-503.24694525,0.00024657,2]
[336885688,1725232246808,-500.0,0.00024657,2]
[336885689,1725232246817,-670.95,0.00024657,2]
[336885690,1725232246827,-3213.93,0.00024657,2]
[336885691,1725232246836,-500.0,0.00024657,2]
[336885692,1725232246845,-1651.01,0.00024657,2]
[336885693,1725232246854,-500.0,0.00024657,2]
[336885694,1725232246864,-5971.61,0.00024657,2]
[336885695,1725232246873,-500.0,0.00024657,2]
[336885696,1725232246882,-500.0,0.00024657,2]
[336885697,1725232246893,-2024.17,0.00024657,2]
[336885698,1725232246902,-500.0,0.00024657,2]
[336885699,1725232246911,-2239.3,0.00024657,2]
[336885700,1725232246920,-500.0,0.00024657,2]
[336885701,1725232246932,-1186.94,0.00024657,2]
[336885702,1725232246941,-1425.41,0.00024657,2]
[336885703,1725232246951,-500.0,0.00024657,2]
[336885704,1725232246961,-1924.19,0.00024657,2]
[336885705,1725232246970,-500.0,0.00024657,2]
[336885706,1725232246979,-500.0,0.00024657,2]
[336885707,1725232246988,-500.0,0.00024657,2]
[336885708,1725232246997,-572.5,0.00024657,2]
[336885709,1725232247007,-500.0,0.00024657,2]
[336885710,1725232247017,-500.0,0.00024657,2]
[336885711,1725232247026,-669.47025418,0.00024657,2]
[336885712,1725232247393,-989.49974582,0.00024657,2]
[336885713,1725232247403,-500.0,0.00024657,2]
[336885714,1725232247412,-1145.24,0.00024657,2]
[336885715,1725232247421,-500.0,0.00024657,2]
[336885716,1725232247430,-500.0,0.00024657,2]
[336885717,1725232247440,-1423.25,0.00024657,2]
[336885718,1725232247449,-500.0,0.00024657,2]
[336885719,1725232247459,-500.99861587,0.00024657,2]
[336885720,1725232247469,-200.0,0.00024658,15]
[336885721,1725232247478,-500.0,0.00024673,2]
[336885722,1725232247487,-816.64153115,0.00024694,2]
[336885723,1725232247496,-150.112233,0.000247,4]
[336885724,1725232247505,-150.112233,0.000247,2]
[336885725,1725232247514,-5002.03318932,0.00024751,2]
[336885726,1725232247523,-816.64153115,0.00024763,2]
[336885727,1725232247532,-150.112233,0.000248,4]
[336885728,1725232247541,-150.112233,0.000248,3]
[336885729,1725232247550,-963.4304823,0.00024821,3]
[336885730,1725232247560,-153.02792783,0.00024831,7]
[336885731,1725232247569,-153.52,0.00024831,7]
[336885732,1725232247578,-153.21542783,0.00024831,7]
[336885733,1725232247587,-153.21542783,0.00024831,7]
[336885734,1725232247596,-153.21542783,0.00024831,7]
[336885735,1725232247606,-153.21542783,0.00024831,7]
[336885736,1725232247615,-153.21542783,0.00024831,7]
[336885737,1725232247624,-153.21542783,0.00024831,7]
[336885738,1725232247633,-153.21542783,0.00024831,7]
[336885739,1725232247644,-153.99529182,0.00024831,7]
[336885740,1725232247654,-154.49,0.00024831,7]
[336885741,1725232247664,-154.18279182,0.00024831,7]
[336885742,1725232247673,-154.18279182,0.00024831,7]
[336885743,1725232247683,-154.18279182,0.00024831,7]
[336885744,1725232247693,-154.18279182,0.00024831,7]
[336885745,1725232247703,-154.18279182,0.00024831,7]
[336885746,1725232247713,-154.18279182,0.00024831,7]
[336885747,1725232247723,-154.18279182,0.00024831,7]
[336885748,1725232247732,-1474.92445629,0.00024831,2]
[336885749,1725232247741,-816.64153115,0.00024831,2]
[336885750,1725232247751,-150.0,0.00024882,2]
[336885751,1725232247760,-150.112233,0.000249,2]
[336885752,1725232247770,-150.112233,0.000249,3]
[336885753,1725232247780,-150.112233,0.000249,3]
[336885754,1725232247789,-153.0,0.00024911,2]
[336885755,1725232247799,-306.0,0.00024911,2]
[336885756,1725232247814,-153.0,0.00024911,2]
[336885757,1725232247824,-963.4304823,0.00024921,3]
[336885758,1725232247834,-7707.4438584,0.00024921,3]
[336885759,1725232247844,-541.19435553,0.00024929,2]
[336885760,1725232247853,-500.0,0.00024929,2]
[336885761,1725232247863,-500.0,0.00024929,2]
[336885762,1725232247873,-500.0,0.0002493,2]
[336885763,1725232247883,-500.0,0.0002493,2]
[336885764,1725232247897,-500.0,0.0002493,2]
[336885765,1725232247907,-500.0,0.0002493,2]
[336885766,1725232247917,-500.0,0.0002493,2]
[336885767,1725232247927,-500.0,0.0002493,2]
[336885768,1725232247936,-500.0,0.0002493,2]
[336885769,1725232247946,-500.0,0.0002493,2]
[336885770,1725232247955,-500.0,0.0002493,2]
[336885771,1725232247965,-500.0,0.0002493,2]
[336885772,1725232247974,-3712.76,0.0002493,2]
[336885773,1725232247984,-3712.76,0.0002493,2]
[336885774,1725232247994,-3712.76,0.0002493,2]
[336885775,1725232248004,-3712.76,0.0002493,2]
[336885776,1725232248014,-3712.76,0.0002493,2]
[336885777,1725232248024,-3712.76,0.0002493,2]
[336885778,1725232248034,-3712.76,0.0002493,2]
[336885779,1725232248044,-3712.76,0.0002493,2]
[336885780,1725232248054,-500.0,0.0002493,2]
[336885781,1725232248063,-500.0,0.0002493,2]
[336885782,1725232248073,-500.0,0.0002493,2]
[336885783,1725232248084,-500.0,0.0002493,2]
[336885784,1725232248094,-500.0,0.0002493,2]
[336885785,1725232248104,-500.0,0.0002493,2]
[336885786,1725232248114,-500.0,0.0002493,2]
[336885787,1725232248124,-33280.25610893,0.00024931,11]
[336885788,1725232248134,-500.0,0.00024931,2]
[336885789,1725232248153,-500.0,0.00024931,2]
[336885790,1725232248163,-500.0,0.00024931,2]
[336885791,1725232248175,-500.0,0.00024931,2]
[336885792,1725232248187,-500.0,0.00024931,2]
[336885793,1725232248199,-500.0,0.00024931,2]
[336885794,1725232248208,-500.0,0.00024931,2]
[336885795,1725232248218,-500.0,0.00024931,2]
[336885796,1725232248229,-500.0,0.00024931,2]
[336885797,1725232248239,-500.0,0.00024931,2]
[336885798,1725232248249,-500.0,0.00024931,2]
[336885799,1725232248259,-500.0,0.00024931,2]
[336885800,1725232248268,-500.0,0.00024931,2]
[336885801,1725232248278,-500.0,0.00024931,2]
[336885802,1725232248289,-500.0,0.00024931,2]
[336885803,1725232248299,-500.0,0.00024931,2]
[336885804,1725232248308,-503.75109237,0.00024931,2]
[336885805,1725232248318,-500.0,0.00024931,2]
[336885806,1725232248327,-500.0,0.00024931,2]
[336885807,1725232248336,-500.0,0.00024931,2]
[336885808,1725232248345,-500.0,0.00024931,2]
[336885809,1725232248355,-500.0,0.00024931,2]
[336885810,1725232248365,-500.0,0.00024931,2]
[336885811,1725232248376,-500.0,0.00024931,2]
[336885812,1725232248387,-500.0,0.00024931,2]
[336885813,1725232248397,-500.0,0.00024931,2]
[336885814,1725232248407,-500.0,0.00024931,2]
[336885815,1725232248416,-500.0,0.00024931,2]
[336885816,1725232248426,-500.0,0.00024931,2]
[336885817,1725232248436,-500.0,0.00024931,2]
[336885818,1725232248445,-500.0,0.00024931,2]
[336885819,1725232248455,-500.0,0.00024931,2]
[336885820,1725232248465,-500.0,0.00024931,2]
[336885821,1725232248475,-159.22190684,0.00024931,2]
[336885822,1725232248485,-500.0,0.00024931,2]
[336885823,1725232248494,-500.0,0.00024931,2]
[336885824,1725232248504,-500.0,0.00024931,2]
[336885825,1725232248514,-500.0,0.00024931,2]
[336885826,1725232248523,-500.0,0.00024931,2]
[336885827,1725232248532,-500.0,0.00024931,2]
[336885828,1725232248542,-500.0,0.00024931,2]
[336885829,1725232248552,-500.0,0.00024931,2]
[336885830,1725232248561,-750.38,0.00024931,2]
[336885831,1725232248572,-500.0,0.00024931,2]
[336885832,1725232248582,-500.0,0.00024931,2]
[336885833,1725232248591,-500.0,0.00024931,2]
[336885834,1725232248601,-500.0,0.00024931,2]
[336885835,1725232248610,-500.0,0.00024931,2]
[336885836,1725232248620,-500.0,0.00024931,2]
[336885837,1725232248630,-500.0,0.00024931,2]
[336885838,1725232248643,-500.0,0.00024931,2]
[336885839,1725232248654,-501.19927622,0.00024931,2]
[336885840,1725232248663,-500.0,0.00024931,2]
[336885841,1725232248673,-500.0,0.00024931,2]
[336885842,1725232248682,-500.0,0.00024931,2]
[336885843,1725232248692,-500.0,0.00024931,2]
[336885844,1725232248701,-655.94,0.00024931,2]
[336885845,1725232248711,-500.0,0.00024931,2]
[336885846,1725232248721,-500.0,0.00024931,2]
[336885847,1725232248731,-523.56,0.00024931,2]
[336885848,1725232248741,-500.0,0.00024931,2]
[336885849,1725232248751,-500.0,0.00024931,2]
[336885850,1725232248760,-270.28823137,0.00024931,2]
[336885851,1725232248769,-505.74567991,0.00024931,2]
[336885852,1725232248779,-500.0,0.00024931,2]
[336885853,1725232248788,-500.0,0.00024931,2]
[336885854,1725232248798,-500.0,0.00024931,2]
[336885855,1725232248808,-503.96557598,0.00024931,2]
[336885856,1725232248818,-512.64148021,0.00024931,2]
[336885857,1725232248828,-500.0,0.00024931,2]
[336885858,1725232248837,-500.0,0.00024931,2]
[336885859,1725232248847,-500.0,0.00024931,2]
[336885860,1725232248856,-500.0,0.00024931,2]
[336885861,1725232248866,-500.0,0.00024931,2]
[336885862,1725232248876,-570.14976887,0.00024931,2]
[336885863,1725232248888,-500.0,0.00024931,2]
[336885864,1725232248898,-500.0,0.00024931,2]
[336885865,1725232248907,-623.96,0.00024931,2]
[336885866,1725232248917,-500.0,0.00024931,2]
[336885867,1725232248930,-500.0,0.00024931,2]
[336885868,1725232248942,-500.0,0.00024931,2]
[336885869,1725232248952,-500.0,0.00024931,2]
[336885870,1725232248962,-500.0,0.00024931,2]
[336885871,1725232248972,-500.0,0.00024931,2]
[336885872,1725232248982,-500.0,0.00024931,2]
[336885873,1725232248991,-500.0,0.00024931,2]
[336885874,1725232249001,-500.0,0.00024931,2]
[336885875,1725232249011,-500.0,0.00024931,2]
[336885876,1725232249021,-670.98,0.00024931,2]
[336885877,1725232249031,-500.0,0.00024931,2]
[336885878,1725232249041,-500.0,0.00024931,2]
[336885879,1725232249050,-505.59845591,0.00024931,2]
[336885880,1725232249060,-500.0,0.00024931,2]
[336885881,1725232249069,-638.19648141,0.00024931,2]
[336885882,1725232249079,-500.0,0.00024931,2]
[336885883,1725232249089,-1105.18,0.00024931,2]
[336885884,1725232249098,-500.0,0.00024931,2]
[336885885,1725232249108,-500.0,0.00024931,2]
[336885886,1725232249118,-500.0,0.00024931,2]
[336885887,1725232249127,-500.0,0.00024931,2]
[336885888,1725232249140,-500.0,0.00024931,2]
[336885889,1725232249153,-500.0,0.00024931,2]
[336885890,1725232249162,-500.0,0.00024931,2]
[336885891,1725232249172,-500.0,0.00024931,2]
[336885892,1725232249182,-500.0,0.00024931,2]
[336885893,1725232249191,-672.49,0.00024931,2]
[336885894,1725232249201,-500.0,0.00024931,2]
[336885895,1725232249210,-500.0,0.00024931,2]
[336885896,1725232249220,-821.88,0.00024931,2]
[336885897,1725232249229,-500.0,0.00024931,2]
[336885898,1725232249239,-500.0,0.00024931,2]
[336885899,1725232249249,-500.0,0.00024931,2]
[336885900,1725232249258,-521.36,0.00024931,2]
[336885901,1725232249268,-500.0,0.00024931,2]
[336885902,1725232249278,-500.0,0.00024931,2]
[336885903,1725232249288,-447.12640099,0.00024931,2]
[336885904,1725232249298,-500.0,0.00024931,2]
[336885905,1725232249307,-500.0,0.00024931,2]
[336885906,1725232249317,-500.0,0.00024931,2]
[336885907,1725232249327,-500.0,0.00024931,2]
[336885908,1725232249336,-500.0,0.00024931,2]
[336885909,1725232249346,-500.0,0.00024931,2]
[336885910,1725232249357,-913.46,0.00024931,2]
[336885911,1725232249368,-500.0,0.00024931,2]
[336885912,1725232249379,-500.0,0.00024931,2]
[336885913,1725232249391,-500.0,0.00024931,2]
[336885914,1725232249401,-802.19,0.00024931,2]
[336885915,1725232249411,-500.0,0.00024931,2]
[336885916,1725232249420,-500.0,0.00024931,2]
[336885917,1725232249430,-500.0,0.00024931,2]
[336885918,1725232249440,-500.0,0.00024931,2]
[336885919,1725232249450,-500.0,0.00024931,2]
[336885920,1725232249460,-500.0,0.00024931,2]
[336885921,1725232249469,-161.511001,0.00024931,7]
[336885922,1725232249479,-551.32,0.00024931,2]
[336885923,1725232249489,-500.0,0.00024931,2]
[336885924,1725232249498,-500.0,0.00024931,2]
[336885925,1725232249508,-500.0,0.00024931,2]
[336885926,1725232249517,-500.0,0.00024931,2]
[336885927,1725232249527,-500.0,0.00024931,2]
[336885928,1725232249536,-500.0,0.00024931,2]
[336885929,1725232249546,-500.0,0.00024931,2]
[336885930,1725232249556,-500.0,0.00024931,2]
[336885931,1725232249565,-500.0,0.00024931,2]
[336885932,1725232249576,-500.0,0.00024931,2]
[336885933,1725232249585,-500.0,0.00024931,2]
[336885934,1725232249595,-500.0,0.00024931,2]
[336885935,1725232249604,-500.0,0.00024931,2]
[336885936,1725232249614,-500.0,0.00024931,2]
[336885937,1725232249624,-505.05089213,0.00024931,2]
[336885938,1725232249633,-500.0,0.00024931,2]
[336885939,1725232249644,-500.0,0.00024931,2]
[336885940,1725232249654,-500.0,0.00024931,2]
[336885941,1725232249663,-500.0,0.00024931,2]
[336885942,1725232249673,-500.0,0.00024931,2]
[336885943,1725232249683,-500.0,0.00024931,2]
[336885944,1725232249692,-500.0,0.00024931,2]
[336885945,1725232249702,-500.0,0.00024931,2]
[336885946,1725232249712,-500.0,0.00024931,2]
[336885947,1725232249721,-666.042502,0.00024931,7]
[336885948,1725232249731,-500.0,0.00024931,2]
[336885949,1725232249740,-666.042502,0.00024931,7]
[336885950,1725232249750,-500.0,0.00024931,2]
[336885951,1725232249760,-500.0,0.00024931,2]
[336885952,1725232249769,-524.17276754,0.00024931,2]
[336885953,1725232249779,-500.0,0.00024931,2]
[336885954,1725232249788,-500.0,0.00024931,2]
[336885955,1725232249797,-500.0,0.00024931,2]
[336885956,1725232249807,-500.0,0.00024931,2]
[336885957,1725232249817,-557.48951493,0.00024931,2]
[336885958,1725232249827,-500.0,0.00024931,2]
[336885959,1725232249837,-500.0,0.00024931,2]
[336885960,1725232249846,-500.0,0.00024931,2]
[336885961,1725232249855,-500.0,0.00024931,2]
[336885962,1725232249865,-500.0,0.00024931,2]
[336885963,1725232249874,-500.0,0.00024931,2]
[336885964,1725232249886,-500.0,0.00024931,2]
[336885965,1725232249897,-4354.47,0.00024931,2]
[336885966,1725232249908,-500.0,0.00024931,2]
[336885967,1725232249917,-792.57,0.00024931,2]
[336885968,1725232249927,-500.0,0.00024931,2]
[336885969,1725232249937,-500.0,0.00024931,2]
[336885970,1725232249947,-500.0,0.00024931,2]
[336885971,1725232249957,-500.0,0.00024931,2]
[336885972,1725232249967,-500.0,0.00024931,2]
[336885973,1725232249977,-887.63,0.00024931,2]
[336885974,1725232249987,-500.0,0.00024931,2]
[336885975,1725232249997,-500.0,0.00024931,2]
[336885976,1725232250006,-500.0,0.00024931,2]
[336885977,1725232250016,-500.60029775,0.00024931,2]
[336885978,1725232250026,-500.0,0.00024931,2]
[336885979,1725232250036,-500.0,0.00024931,2]
[336885980,1725232250046,-500.0,0.00024931,2]
[336885981,1725232250056,-1385.69,0.00024931,2]
[336885982,1725232250066,-580.58,0.00024931,2]
[336885983,1725232250076,-500.0,0.00024931,2]
[336885984,1725232250086,-500.0,0.00024931,2]
[336885985,1725232250096,-500.0,0.00024931,2]
[336885986,1725232250105,-500.0,0.00024931,2]
[336885987,1725232250116,-251.9472781,0.00024931,2]
[336885988,1725232250241,-617.23,0.00024931,2]
[336885989,1725232250252,-500.0,0.00024931,2]
[336885990,1725232250262,-501.36383161,0.00024931,2]
[336885991,1725232250272,-500.0,0.00024931,2]
[336885992,1725232250282,-500.0,0.00024931,2]
[336885993,1725232250293,-500.0,0.00024931,2]
[336885994,1725232250303,-500.0,0.00024931,2]
[336885995,1725232250313,-500.0,0.00024931,2]
[336885996,1725232250323,-827.2,0.00024931,2]
[336885997,1725232250333,-500.0,0.00024931,2]
[336885998,1725232250344,-500.0,0.00024931,2]
[336885999,1725232250355,-692.08,0.00024931,2]
[336886000,1725232250364,-867.59,0.00024931,2]
[336886001,1725232250374,-500.0,0.00024931,2]
[336886002,1725232250383,-500.0,0.00024931,2]
[336886003,1725232250394,-500.0,0.00024931,2]
[336886004,1725232250404,-500.0,0.00024931,2]
[336886005,1725232250415,-500.0,0.00024931,2]
[336886006,1725232250425,-500.0,0.00024931,2]
[336886007,1725232250435,-500.0,0.00024931,2]
[336886008,1725232250444,-500.0,0.00024931,2]
[336886009,1725232250456,-500.0,0.00024931,2]
[336886010,1725232250466,-500.0,0.00024931,2]
[336886011,1725232250475,-500.0,0.00024931,2]
[336886012,1725232250485,-500.0,0.00024931,2]
[336886013,1725232250495,-405.66399711,0.00024931,2]
[336886014,1725232250505,-500.0,0.00024931,2]
[336886015,1725232250515,-500.0,0.00024931,2]
[336886016,1725232250524,-500.0,0.00024931,2]
[336886017,1725232250533,-500.0,0.00024931,2]
[336886018,1725232250543,-500.0,0.00024931,2]
[336886019,1725232250553,-500.0,0.00024931,2]
[336886020,1725232250563,-500.0,0.00024931,2]
[336886021,1725232250574,-500.0,0.00024931,2]
[336886022,1725232250584,-500.0,0.00024931,2]
[336886023,1725232250595,-500.0,0.00024931,2]
[336886024,1725232250606,-665.1,0.00024931,2]
[336886025,1725232250617,-756.16,0.00024931,2]
[336886026,1725232250627,-501.29122431,0.00024931,2]
[336886027,1725232250637,-500.0,0.00024931,2]
[336886028,1725232250647,-500.0,0.00024931,2]
[336886029,1725232250657,-500.0,0.00024931,2]
[336886030,1725232250667,-501.51833889,0.00024931,2]
[336886031,1725232250676,-523.13785599,0.00024931,2]
[336886032,1725232250686,-500.0,0.00024931,2]
[336886033,1725232250695,-500.0,0.00024931,2]
[336886034,1725232250705,-500.0,0.00024931,2]
[336886035,1725232250714,-500.0,0.00024931,2]
[336886036,1725232250724,-500.0,0.00024931,2]
[336886037,1725232250733,-200.0,0.00024931,2]
[336886038,1725232250743,-500.0,0.00024931,2]
[336886039,1725232250752,-500.0,0.00024931,2]
[336886040,1725232250762,-500.0,0.00024931,2]
[336886041,1725232250772,-500.0,0.00024931,2]
[336886042,1725232250783,-500.0,0.00024931,2]
[336886043,1725232250793,-500.0,0.00024931,2]
[336886044,1725232250803,-500.0,0.00024931,2]
[336886045,1725232250812,-500.0,0.00024931,2]
[336886046,1725232250822,-500.0,0.00024931,2]
[336886047,1725232250831,-239.52337207,0.00024931,2]
[336886048,1725232250841,-500.0,0.00024931,2]
[336886049,1725232250851,-1293.81,0.00024931,2]
[336886050,1725232250861,-500.0,0.00024931,2]
[336886051,1725232250871,-815.07,0.00024931,2]
[336886052,1725232250881,-500.0,0.00024931,2]
[336886053,1725232250891,-503.44457753,0.00024931,2]
[336886054,1725232250902,-1786.95,0.00024931,2]
[336886055,1725232250911,-344.95063862,0.00024931,2]
[336886056,1725232250921,-151.0,0.00024931,7]
[336886057,1725232250930,-500.0,0.00024931,2]
[336886058,1725232250939,-500.0,0.00024931,2]
[336886059,1725232250948,-1017.63,0.00024931,2]
[336886060,1725232250957,-151.0,0.00024931,7]
[336886061,1725232250967,-591.63282331,0.00024931,2]
[336886062,1725232250976,-500.0,0.00024931,2]
[336886063,1725232250986,-500.0,0.00024931,2]
[336886064,1725232250995,-997.55,0.00024931,2]
[336886065,1725232251005,-500.0,0.00024931,2]
[336886066,1725232251014,-500.0,0.00024931,2]
[336886067,1725232251024,-500.0,0.00024931,2]
[336886068,1725232251033,-500.0,0.00024931,2]
[336886069,1725232251042,-500.0,0.00024931,2]
[336886070,1725232251051,-500.0,0.00024931,2]
[336886071,1725232251060,-500.0,0.00024931,2]
[336886072,1725232251069,-500.0,0.00024931,2]
[336886073,1725232251079,-500.0,0.00024931,2]
[336886074,1725232251088,-500.0,0.00024931,2]
[336886075,1725232251097,-500.0,0.00024931,2]
[336886076,1725232251106,-500.0,0.00024931,2]
[336886077,1725232251115,-500.0,0.00024931,2]
[336886078,1725232251124,-502.17971917,0.00024931,2]
[336886079,1725232251135,-500.0,0.00024931,2]
[336886080,1725232251146,-500.0,0.00024931,2]
[336886081,1725232251156,-500.0,0.00024931,2]
[336886082,1725232251165,-500.0,0.00024931,2]
[336886083,1725232251175,-500.0,0.00024931,2]
[336886084,1725232251184,-500.0,0.00024931,2]
[336886085,1725232251193,-500.0,0.00024931,2]
[336886086,1725232251203,-584.28633893,0.00024931,2]
[336886087,1725232251212,-500.0,0.00024931,2]
[336886088,1725232251221,-500.0,0.00024931,2]
[336886089,1725232251230,-500.0,0.00024931,2]
[336886090,1725232251240,-500.0,0.00024931,2]
[336886091,1725232251250,-1146.11,0.00024931,2]
[336886092,1725232251259,-500.0,0.00024931,2]
[336886093,1725232251269,-2343.7,0.00024931,2]
[336886094,1725232251279,-903.84,0.00024931,2]
[336886095,1725232251289,-750.84,0.00024931,2]
[336886096,1725232251299,-500.0,0.00024931,2]
[336886097,1725232251309,-501.76369509,0.00024931,2]
[336886098,1725232251319,-1111.99,0.00024931,2]
[336886099,1725232251328,-500.0,0.00024931,2]
[336886100,1725232251338,-500.0,0.00024931,2]
[336886101,1725232251348,-500.0,0.00024931,2]
[336886102,1725232251357,-500.0,0.00024931,2]
[336886103,1725232251367,-500.0,0.00024931,2]
[336886104,1725232251377,-948.57,0.00024931,2]
[336886105,1725232251386,-1408.38,0.00024931,2]
[336886106,1725232251401,-530.90616032,0.00024931,2]
[336886107,1725232251410,-532.51,0.00024931,2]
[336886108,1725232251422,-500.0,0.00024931,2]
[336886109,1725232251431,-500.0,0.00024931,2]
[336886110,1725232251441,-500.0,0.00024931,2]
[336886111,1725232251450,-922.79,0.00024931,2]
[336886112,1725232251460,-500.0,0.00024931,2]
[336886113,1725232251469,-500.69716664,0.00024931,2]
[336886114,1725232251479,-500.0,0.00024931,2]
[336886115,1725232251487,-1616.99,0.00024931,2]
[336886116,1725232251497,-500.0,0.00024931,2]
[336886117,1725232251507,-392.50524189,0.00024931,2]
[336886118,1725232251516,-500.0,0.00024931,2]
[336886119,1725232251525,-500.0,0.00024931,2]
[336886120,1725232251535,-2371.23,0.00024931,2]
[336886121,1725232251544,-500.0,0.00024931,2]
[336886122,1725232251554,-2379.62,0.00024931,2]
[336886123,1725232251563,-500.0,0.00024931,2]
[336886124,1725232251573,-749.22,0.00024931,2]
[336886125,1725232251582,-500.0,0.00024931,2]
[336886126,1725232251592,-2339.41,0.00024931,2]
[336886127,1725232251602,-500.0,0.00024931,2]
[336886128,1725232251611,-500.0,0.00024931,2]
[336886129,1725232251620,-500.0,0.00024931,2]
[336886130,1725232251629,-500.0,0.00024931,2]
[336886131,1725232251642,-500.0,0.00024931,2]
[336886132,1725232251651,-500.0,0.00024931,2]
[336886133,1725232251660,-500.0,0.00024931,2]
[336886134,1725232251669,-500.0,0.00024931,2]
[336886135,1725232251678,-500.0,0.00024931,2]
[336886136,1725232251688,-581.61373928,0.00024931,2]
[336886137,1725232251696,-581.06,0.00024931,2]
[336886138,1725232251705,-500.0,0.00024931,2]
[336886139,1725232251714,-1395.07,0.00024931,2]
[336886140,1725232251723,-500.0,0.00024931,2]
[336886141,1725232251733,-2061.81,0.00024931,2]
[336886142,1725232251742,-500.0,0.00024931,2]
[336886143,1725232251751,-622.66,0.00024931,2]
[336886144,1725232251760,-500.0,0.00024931,2]
[336886145,1725232251770,-500.0,0.00024931,2]
[336886146,1725232251780,-701.5,0.00024931,2]
[336886147,1725232251789,-500.0,0.00024931,2]
[336886148,1725232251798,-500.0,0.00024931,2]
[336886149,1725232251807,-500.0,0.00024931,2]
[336886150,1725232251816,-500.96254311,0.00024931,2]
[336886151,1725232251825,-634.0,0.00024931,2]
[336886152,1725232251834,-500.0,0.00024931,2]
[336886153,1725232251843,-500.0,0.00024931,2]
[336886154,1725232251852,-550.76,0.00024931,2]
[336886155,1725232251861,-502.33887815,0.00024931,2]
[336886156,1725232251871,-500.0,0.00024931,2]
[336886157,1725232251880,-247.901188,0.00024931,2]